Workbook

Sheet 399 Luksoforu uztur..
D1: IKDIENAS UZTURĒŠANA | G1: Līguma NR. PIL/2-4/22/73
A3: Jelgavas valstspilsētas luksoforu objektu uzturēšana
A5: N.p.k | B5: Pas. Nr | C5: Darbu vieta | D5: Paredzamie darbi | E5: Kods | F5: Paredzamais izpildes datums | G5: Apjoms | H5: Daudzums | I5: Kopējais apjoms | J5: Vienības cena, EUR | K5: Izmaksas, EUR
A6: Pēc Csng Loka maģistrāles krustojumā ar Rīgas ielu jāatjauno luksofora balsts, vēlā nakts stundā veikti nolauzto elementu savākšanas darbi, pārrauto kabeļu notīšana. Nolauztā luksofora balsta vietā jāuzstāda jauns balsts, tāpat bojāta luksofora pamatne, kura jāmaina. Tāpat jānomaina signālgalva, gājēju signālgalva, kā arī gājēju poga jāuzstāda jauna. Blakus esošais gājēju balsts, kur atrodas ir tik uzstādīta gājēju poga, tas ir jāiztaisno.
A7: 1 | B7: 103371 | C7: Rīgas ielas - Loka maģistrāles krustojums remontdarbi pēc 02.01.2023. CSNg | D7: Luksofora balsta demontāža | E7: 1.2 | F7: 03.01.2023 - 15.01.2023 | I7: 1 | J7: 75.00 | K7: =I7*J7 -> 75.00
A8: 2 | D8: Luksofora balsta pamata demontāža | E8: 1.4 | F8: 03.01.2023 - 15.01.2023 | I8: 1 | J8: 50.00 | K8: =I8*J8 -> 50.00
A9: 3 | D9: Signālgalvas demontāža | E9: 1.6 | F9: 03.01.2023 - 15.01.2023 | I9: 2 | J9: 50.00 | K9: =I9*J9 -> 100.00
A10: 4 | D10: Gājēju izsaukuma pogas demontāža | E10: 1.7 | F10: 03.01.2023 - 15.01.2023 | I10: 1 | J10: 40.00 | K10: =I10*J10 -> 40.00
A11: 5 | D11: Strādnieka darbs | E11: 1.10 | F11: 03.01.2023 - 15.01.2023 | I11: 3 | J11: 45.00 | K11: =I11*J11 -> 135.00
A12: 6 | D12: Kabeļa montāža (nomaiņa) balstā | E12: 2.11 | F12: 03.01.2023 - 15.01.2023 | I12: 11 | J12: 2.40 | K12: =I12*J12 -> 26.40
A13: 7 | D13: Signālkabeļa 7-19x2.5 gala apdare, pieslēgšana | E13: 2.14 | F13: 03.01.2023 - 15.01.2023 | I13: 1 | J13: 40.00 | K13: =I13*J13 -> 40.00
A14: 8 | D14: Datu kabeļa gala apdare, pieslēgšana | E14: 2.15 | F14: 03.01.2023 - 15.01.2023 | I14: 1 | J14: 15.00 | K14: =I14*J14 -> 15.00
A15: 9 | D15: Luksofora balsta montāža | E15: 3.1 | F15: 03.01.2023 - 15.01.2023 | I15: 1 | J15: 80.00 | K15: =I15*J15 -> 80.00
A16: 10 | D16: Luksofora balsta pamata montāža | E16: 3.3 | F16: 03.01.2023 - 15.01.2023 | I16: 1 | J16: 35.00 | K16: =I16*J16 -> 35.00
A17: 11 | D17: Luksofora balsta taisnošana, remonts | E17: 3.5 | F17: 03.01.2023 - 15.01.2023 | I17: 1 | J17: 30.00 | K17: =I17*J17 -> 30.00
A18: 12 | D18: Datorizētās akustiskās gājēju izsaukuma pogas montāža | E18: 3.8 | F18: 03.01.2023 - 15.01.2023 | I18: 1 | J18: 40.00 | K18: =I18*J18 -> 40.00
A19: 13 | D19: Transporta signālgalvas montāža uz balsta | E19: 5.1 | F19: 03.01.2023 - 15.01.2023 | I19: 1 | J19: 70.00 | K19: =I19*J19 -> 70.00
A20: 14 | D20: Gājēju signālgalvas ar laika atskaites displeju montāža | E20: 5.6 | F20: 03.01.2023 - 15.01.2023 | I20: 1 | J20: 70.00 | K20: =I20*J20 -> 70.00
A21: 15 | D21: Signālgalvas aizsargjumtiņa nomaiņa uz balsta | E21: 5.10 | F21: 03.01.2023 - 15.01.2023 | I21: 3 | J21: 30.00 | K21: =I21*J21 -> 90.00
A22: 16 | D22: Signālgalvas stiprinājuma kronšteina nomaiņa uz balsta | E22: 5.12 | F22: 03.01.2023 - 15.01.2023 | I22: 3 | J22: 30.00 | K22: =I22*J22 -> 90.00
A23: 17 | D23: Kabelis Cu 3x1.5 | E23: 9.2 | F23: 03.01.2023 - 15.01.2023 | I23: 7 | J23: 0.92 | K23: =I23*J23 -> 6.44
A24: 18 | D24: Signālkabelis Cu 7x2.5 | E24: 9.3 | F24: 03.01.2023 - 15.01.2023 | I24: 4 | J24: 5.05 | K24: =I24*J24 -> 20.20
A25: 19 | D25: Signālkabeļa spaiļu komplekts (līdz 10 gab.) | E25: 9.11 | F25: 03.01.2023 - 15.01.2023 | I25: 1 | J25: 10.00 | K25: =I25*J25 -> 10.00
A26: 20 | D26: Luksofora balsts h=6m Technopali STP45-114-2 | E26: 10.2 | F26: 03.01.2023 - 15.01.2023 | I26: 1 | J26: 236.60 | K26: =I26*J26 -> 236.60
A27: 21 | D27: Luksofora balsta pamatne P-1 | E27: 10.4 | F27: 03.01.2023 - 15.01.2023 | I27: 1 | J27: 48.57 | K27: =I27*J27 -> 48.57
A28: 22 | D28: Datorizēta akustiska gājēju izsaukuma poga Langmatz EK533 | E28: 10.7 | F28: 03.01.2023 - 15.01.2023 | I28: 1 | J28: 793.00 | K28: =I28*J28 -> 793.00
A29: 23 | D29: Signālgalvas stiprinājuma (alumīnija) kronšteins | E29: 11.15 | F29: 03.01.2023 - 15.01.2023 | I29: 3 | J29: 36.40 | K29: =I29*J29 -> 109.20
A30: 24 | D30: Signālgalvas aizsargjumtiņš | E30: 11.18 | F30: 03.01.2023 - 15.01.2023 | I30: 3 | J30: 15.60 | K30: =I30*J30 -> 46.80
J31: Kopā: | K31: =SUM(K6:K30) -> 2257.21
A32: Sagatavoja: | J32: Kopā, ar PVN 21% | K32: =K31*1.21 -> 2731.22
A33: Uldis Grunde-Zeiferts
A34: 2024-11-19T11:20:33
